[Event "Titled Tuesday Blitz April 26 Early 2022"]
[White "Bristy, Mukherjee"]
[Black "Simonovic, Miroslav"]
[WhiteFideId "25077325"]
[BlackFideId "919152"]
[WhiteElo "1661"]
[BlackElo "2043"]
[Result "1-0"]
[Round "06"]
[TimeControl "180+1"]
[Date "2022.04.26"]
[WhiteClock "0:01:44"]
[BlackClock "0:01:09"]

1. d4 {[%clk 0:03:00]}  Nf6 {[%clk 0:02:59]} 2. Bg5 {[%clk 0:02:59]}  e6 {[%clk 0:02:57]} 3. e3 {[%clk 0:02:57]}  Be7 {[%clk 0:02:57]} 4. Nd2 {[%clk 0:02:57]}  d5 {[%clk 0:02:56]} 5. Bd3 {[%clk 0:02:57]}  h6 {[%clk 0:02:56]} 6. Bh4 {[%clk 0:02:56]}  g5 {[%clk 0:02:56]} 7. Bg3 {[%clk 0:02:56]}  c5 {[%clk 0:02:56]} 8. c3 {[%clk 0:02:55]}  c4 {[%clk 0:02:56]} 9. Bc2 {[%clk 0:02:54]}  b5 {[%clk 0:02:50]} 10. h4 {[%clk 0:02:54]}  g4 {[%clk 0:02:48]} 11. Ne2 {[%clk 0:02:49]}  Bb7 {[%clk 0:02:37]} 12. Nf4 {[%clk 0:02:40]}  h5 {[%clk 0:02:34]} 13. Qe2 {[%clk 0:02:37]}  Nbd7 {[%clk 0:02:25]} 14. e4 {[%clk 0:02:37]}  dxe4 {[%clk 0:02:08]} 15. Nxe4 {[%clk 0:02:27]}  Nd5 {[%clk 0:02:06]} 16. O-O-O {[%clk 0:02:17]}  N7b6 {[%clk 0:02:03]} 17. Nc5 {[%clk 0:02:13]}  Bc6 {[%clk 0:01:54]} 18. Nfxe6 {[%clk 0:02:08]}  fxe6 {[%clk 0:01:53]} 19. Bg6+ {[%clk 0:02:08]}  Kf8 {[%clk 0:01:45]} 20. Nxe6+ {[%clk 0:02:07]}  Kg8 {[%clk 0:01:45]} 21. Nxd8 {[%clk 0:02:07]}  Rxd8 {[%clk 0:01:38]} 22. Qe6+ {[%clk 0:02:06]}  Kg7 {[%clk 0:01:39]} 23. Qxc6 {[%clk 0:01:54]}  Rh6 {[%clk 0:01:32]} 24. Be5+ {[%clk 0:01:50]}  Nf6 {[%clk 0:01:09]} 25. Qe6 {[%clk 0:01:44]} 1-0


[Site "https://www.chess.com"]

[Event "Titled Tuesday Blitz April 26 Early 2022"]
[White "Brodowski, Piotr"]
[Black "Zhigalko, Sergei"]
[WhiteFideId "1124480"]
[BlackFideId "13502956"]
[WhiteElo "2422"]
[BlackElo "2662"]
[Result "0-1"]
[Round "06"]
[TimeControl "180+1"]
[Date "2022.04.26"]
[WhiteClock "0:00:06"]
[BlackClock "0:00:05"]

1. e4 {[%clk 0:02:58]}  c5 {[%clk 0:02:59]} 2. Nf3 {[%clk 0:02:58]}  Nc6 {[%clk 0:03:00]} 3. Bb5 {[%clk 0:02:57]}  Nf6 {[%clk 0:03:00]} 4. Qe2 {[%clk 0:02:49]}  g6 {[%clk 0:03:00]} 5. O-O {[%clk 0:02:46]}  Bg7 {[%clk 0:03:00]} 6. Bxc6 {[%clk 0:02:35]}  dxc6 {[%clk 0:03:00]} 7. e5 {[%clk 0:02:35]}  Nd5 {[%clk 0:03:00]} 8. h3 {[%clk 0:02:31]}  h6 {[%clk 0:02:49]} 9. d3 {[%clk 0:02:29]}  g5 {[%clk 0:02:48]} 10. Qe4 {[%clk 0:02:02]}  Nb4 {[%clk 0:02:36]} 11. Na3 {[%clk 0:01:55]}  Qd5 {[%clk 0:02:36]} 12. Re1 {[%clk 0:01:46]}  Be6 {[%clk 0:02:28]} 13. Bd2 {[%clk 0:01:44]}  Qxe4 {[%clk 0:02:06]} 14. Rxe4 {[%clk 0:01:38]}  Bd5 {[%clk 0:02:04]} 15. Ree1 {[%clk 0:01:30]}  O-O-O {[%clk 0:02:03]} 16. Bxb4 {[%clk 0:01:21]}  cxb4 {[%clk 0:02:03]} 17. Nc4 {[%clk 0:01:22]}  Kc7 {[%clk 0:01:53]} 18. Ncd2 {[%clk 0:00:42]}  a5 {[%clk 0:01:48]} 19. a3 {[%clk 0:00:39]}  Ra8 {[%clk 0:01:35]} 20. axb4 {[%clk 0:00:34]}  axb4 {[%clk 0:01:34]} 21. Kf1 {[%clk 0:00:34]}  b5 {[%clk 0:01:19]} 22. b3 {[%clk 0:00:27]}  Kb6 {[%clk 0:01:17]} 23. d4 {[%clk 0:00:21]}  f5 {[%clk 0:01:14]} 24. exf6 {[%clk 0:00:20]}  exf6 {[%clk 0:01:12]} 25. Rac1 {[%clk 0:00:16]}  Ra7 {[%clk 0:00:40]} 26. Ne4 {[%clk 0:00:15]}  f5 {[%clk 0:00:40]} 27. Ng3 {[%clk 0:00:12]}  Rf8 {[%clk 0:00:37]} 28. Ne5 {[%clk 0:00:12]}  f4 {[%clk 0:00:27]} 29. Nh5 {[%clk 0:00:13]}  Bxe5 {[%clk 0:00:19]} 30. Rxe5 {[%clk 0:00:08]}  f3 {[%clk 0:00:20]} 31. g4 {[%clk 0:00:07]}  Ra2 {[%clk 0:00:16]} 32. Ng3 {[%clk 0:00:07]}  Rf4 {[%clk 0:00:11]} 33. Nf5 {[%clk 0:00:06]}  Ra8 {[%clk 0:00:05]} 34. Rd1 {[%clk 0:00:03]}  h5 {[%clk 0:00:05]} 35. Ne3 {[%clk 0:00:03]}  hxg4 {[%clk 0:00:05]} 36. hxg4 {[%clk 0:00:02]}  Be4 {[%clk 0:00:05]} 37. d5 {[%clk 0:00:02]}  Rh8 {[%clk 0:00:03]} 38. Ke1 {[%clk 0:00:02]}  Rh1+ {[%clk 0:00:02]} 39. Kd2 {[%clk 0:00:03]}  Rh2 {[%clk 0:00:03]} 40. Ke1 {[%clk 0:00:03]}  Rh1+ {[%clk 0:00:02]} 41. Kd2 {[%clk 0:00:03]}  Rxd1+ {[%clk 0:00:03]} 42. Kxd1 {[%clk 0:00:03]}  cxd5 {[%clk 0:00:03]} 43. Nxd5+ {[%clk 0:00:04]}  Bxd5 {[%clk 0:00:03]} 44. Rxd5 {[%clk 0:00:04]}  Rxg4 {[%clk 0:00:04]} 45. Rf5 {[%clk 0:00:05]}  Rg1+ {[%clk 0:00:03]} 46. Kd2 {[%clk 0:00:05]}  g4 {[%clk 0:00:04]} 47. Rg5 {[%clk 0:00:05]}  Kc6 {[%clk 0:00:04]} 48. Ke3 {[%clk 0:00:05]}  Kb6 {[%clk 0:00:04]} 49. Rg6+ {[%clk 0:00:05]}  Kc5 {[%clk 0:00:04]} 50. Rg5+ {[%clk 0:00:06]}  Kc6 {[%clk 0:00:05]} 51. Rg6+ {[%clk 0:00:06]}  Kb7 {[%clk 0:00:05]} 52. Rg5 {[%clk 0:00:06]}  Ka6 {[%clk 0:00:05]} 53. Rg6+ {[%clk 0:00:06]}  Ka5 {[%clk 0:00:05]} 54. Rg5 {[%clk 0:00:06]}  Re1+ {[%clk 0:00:02]} 55. Kd3 {[%clk 0:00:06]}  Re2 {[%clk 0:00:02]} 56. Rxg4 {[%clk 0:00:06]}  Rxf2 {[%clk 0:00:02]} 57. Rg6 {[%clk 0:00:06]}  Re2 {[%clk 0:00:01]} 58. Rf6 {[%clk 0:00:07]}  Rf2 {[%clk 0:00:01]} 59. Re6 {[%clk 0:00:06]}  Rh2 {[%clk 0:00:01]} 60. Rf6 {[%clk 0:00:07]}  f2 {[%clk 0:00:02]} 61. Kd4 {[%clk 0:00:07]}  f1=Q {[%clk 0:00:02]} 62. Rxf1 {[%clk 0:00:07]}  Rxc2 {[%clk 0:00:02]} 63. Rf6 {[%clk 0:00:06]}  Rc3 {[%clk 0:00:02]} 64. Rf8 {[%clk 0:00:06]}  Rxb3 {[%clk 0:00:02]} 65. Ra8+ {[%clk 0:00:06]}  Kb6 {[%clk 0:00:02]} 66. Ra1 {[%clk 0:00:07]}  Rc3 {[%clk 0:00:02]} 67. Ke4 {[%clk 0:00:08]}  Kc5 {[%clk 0:00:02]} 68. Rh1 {[%clk 0:00:08]}  b3 {[%clk 0:00:03]} 69. Rh8 {[%clk 0:00:06]}  Kb4 {[%clk 0:00:03]} 70. Kd4 {[%clk 0:00:07]}  Rc4+ {[%clk 0:00:03]} 71. Kd3 {[%clk 0:00:07]}  b2 {[%clk 0:00:04]} 72. Rh1 {[%clk 0:00:06]}  Rc1 {[%clk 0:00:04]} 73. Rh4+ {[%clk 0:00:07]}  Kb3 {[%clk 0:00:04]} 74. Kd2 {[%clk 0:00:06]}  Rc2+ {[%clk 0:00:05]} 75. Kd3 {[%clk 0:00:06]}  b1=Q {[%clk 0:00:06]} 76. Rh3 {[%clk 0:00:06]}  Rc3+ {[%clk 0:00:05]} 77. Kd4 {[%clk 0:00:06]}  Rxh3 {[%clk 0:00:05]} 0-1


[Site "https://www.chess.com"]

[Event "Titled Tuesday Blitz April 26 Early 2022"]
[White "Buchenau, Frank"]
[Black "Fajdetic, Hrvoje"]
[WhiteFideId "4604350"]
[BlackFideId "14501945"]
[WhiteElo "2193"]
[BlackElo "2172"]
[Result "1-0"]
[Round "06"]
[TimeControl "180+1"]
[Date "2022.04.26"]
[WhiteClock "0:00:16"]
[BlackClock "0:00:05"]

1. e4 {[%clk 0:03:00]}  e6 {[%clk 0:02:57]} 2. d4 {[%clk 0:03:00]}  d5 {[%clk 0:02:57]} 3. Nc3 {[%clk 0:03:00]}  dxe4 {[%clk 0:02:57]} 4. Nxe4 {[%clk 0:03:00]}  Nd7 {[%clk 0:02:58]} 5. Nf3 {[%clk 0:03:00]}  Ngf6 {[%clk 0:02:59]} 6. Bg5 {[%clk 0:02:55]}  Be7 {[%clk 0:02:58]} 7. Nxf6+ {[%clk 0:02:55]}  Bxf6 {[%clk 0:02:52]} 8. h4 {[%clk 0:02:55]}  h6 {[%clk 0:02:47]} 9. Bxf6 {[%clk 0:02:50]}  Nxf6 {[%clk 0:02:45]} 10. Bd3 {[%clk 0:02:43]}  Qd5 {[%clk 0:02:33]} 11. c4 {[%clk 0:02:30]}  Qa5+ {[%clk 0:02:31]} 12. Qd2 {[%clk 0:02:26]}  Qxd2+ {[%clk 0:02:29]} 13. Kxd2 {[%clk 0:02:27]}  O-O {[%clk 0:02:26]} 14. Ne5 {[%clk 0:02:21]}  Rd8 {[%clk 0:02:25]} 15. Kc3 {[%clk 0:02:20]}  b6 {[%clk 0:02:09]} 16. g4 {[%clk 0:02:18]}  Bb7 {[%clk 0:02:08]} 17. Rhg1 {[%clk 0:02:18]}  Ne4+ {[%clk 0:02:05]} 18. Bxe4 {[%clk 0:02:16]}  Bxe4 {[%clk 0:02:06]} 19. f3 {[%clk 0:02:08]}  Bb7 {[%clk 0:01:51]} 20. f4 {[%clk 0:02:06]}  f6 {[%clk 0:01:46]} 21. Ng6 {[%clk 0:02:02]}  Be4 {[%clk 0:01:43]} 22. f5 {[%clk 0:01:57]}  c5 {[%clk 0:01:41]} 23. Rad1 {[%clk 0:01:54]}  Kf7 {[%clk 0:01:24]} 24. Nf4 {[%clk 0:01:14]}  exf5 {[%clk 0:01:19]} 25. g5 {[%clk 0:01:13]}  cxd4+ {[%clk 0:01:17]} 26. Rxd4 {[%clk 0:01:12]}  Rxd4 {[%clk 0:01:09]} 27. Kxd4 {[%clk 0:01:13]}  Rd8+ {[%clk 0:01:08]} 28. Kc3 {[%clk 0:01:13]}  hxg5 {[%clk 0:01:06]} 29. hxg5 {[%clk 0:01:14]}  fxg5 {[%clk 0:01:06]} 30. Rxg5 {[%clk 0:01:14]}  Kf6 {[%clk 0:01:01]} 31. Rg6+ {[%clk 0:01:13]}  Ke5 {[%clk 0:00:58]} 32. Nh5 {[%clk 0:01:04]}  a5 {[%clk 0:00:53]} 33. b3 {[%clk 0:00:43]}  Rd3+ {[%clk 0:00:48]} 34. Kb2 {[%clk 0:00:43]}  Rd2+ {[%clk 0:00:29]} 35. Ka3 {[%clk 0:00:42]}  Bb1 {[%clk 0:00:25]} 36. Ka4 {[%clk 0:00:42]}  f4 {[%clk 0:00:12]} 37. Rg5+ {[%clk 0:00:39]}  Ke4 {[%clk 0:00:09]} 38. Rg4 {[%clk 0:00:37]}  Rxa2+ {[%clk 0:00:06]} 39. Kb5 {[%clk 0:00:37]}  Rf2 {[%clk 0:00:07]} 40. Kxb6 {[%clk 0:00:34]}  Kf5 {[%clk 0:00:08]} 41. Rxg7 {[%clk 0:00:33]}  f3 {[%clk 0:00:07]} 42. c5 {[%clk 0:00:30]}  Ke6 {[%clk 0:00:05]} 43. Nf4+ {[%clk 0:00:28]}  Kf6 {[%clk 0:00:04]} 44. Nh5+ {[%clk 0:00:26]}  Ke6 {[%clk 0:00:03]} 45. c6 {[%clk 0:00:26]}  Be4 {[%clk 0:00:02]} 46. c7 {[%clk 0:00:25]}  Rc2 {[%clk 0:00:02]} 47. Nf4+ {[%clk 0:00:21]}  Kf6 {[%clk 0:00:02]} 48. Nh5+ {[%clk 0:00:18]}  Ke6 {[%clk 0:00:02]} 49. Rg4 {[%clk 0:00:17]}  f2 {[%clk 0:00:01]} 50. Rxe4+ {[%clk 0:00:16]}  Kd5 {[%clk 0:00:02]} 51. Rf4 {[%clk 0:00:16]}  Rc6+ {[%clk 0:00:02]} 52. Kb7 {[%clk 0:00:16]}  Rc5 {[%clk 0:00:02]} 53. Rf5+ {[%clk 0:00:16]}  Kd6 {[%clk 0:00:02]} 54. Rf6+ {[%clk 0:00:16]}  Ke7 {[%clk 0:00:02]} 55. Rxf2 {[%clk 0:00:15]}  Rxh5 {[%clk 0:00:02]} 56. c8=Q {[%clk 0:00:15]}  Rb5+ {[%clk 0:00:03]} 57. Kc7 {[%clk 0:00:15]}  Rd5 {[%clk 0:00:03]} 58. Kb8 {[%clk 0:00:15]}  Rd7 {[%clk 0:00:03]} 59. Qxd7+ {[%clk 0:00:15]}  Kxd7 {[%clk 0:00:04]} 60. Rf5 {[%clk 0:00:15]}  Kc6 {[%clk 0:00:05]} 61. Rxa5 {[%clk 0:00:15]}  Kb6 {[%clk 0:00:05]} 62. b4 {[%clk 0:00:15]}  Kc6 {[%clk 0:00:05]} 63. Ka7 {[%clk 0:00:16]}  Kc7 {[%clk 0:00:05]} 64. b5 {[%clk 0:00:16]} 1-0


[Site "https://www.chess.com"]

[Event "Titled Tuesday Blitz April 26 Early 2022"]
[White "Cagara, Paulina"]
[Black "Hamley, Ryan"]
[WhiteFideId "1124870"]
[BlackFideId "30959497"]
[WhiteElo "1780"]
[BlackElo "2439"]
[Result "0-1"]
[Round "06"]
[TimeControl "180+1"]
[Date "2022.04.26"]
[WhiteClock "0:00:27"]
[BlackClock "0:01:05"]

1. e4 {[%clk 0:02:58]}  c6 {[%clk 0:02:59]} 2. d4 {[%clk 0:02:57]}  d5 {[%clk 0:02:59]} 3. exd5 {[%clk 0:02:58]}  cxd5 {[%clk 0:02:59]} 4. Bd3 {[%clk 0:02:58]}  Nc6 {[%clk 0:02:59]} 5. c3 {[%clk 0:02:58]}  g6 {[%clk 0:02:59]} 6. Nf3 {[%clk 0:02:57]}  Bg7 {[%clk 0:03:00]} 7. O-O {[%clk 0:02:56]}  Nf6 {[%clk 0:03:00]} 8. Bf4 {[%clk 0:02:55]}  O-O {[%clk 0:03:00]} 9. Nbd2 {[%clk 0:02:54]}  Bf5 {[%clk 0:02:59]} 10. Bxf5 {[%clk 0:02:53]}  gxf5 {[%clk 0:03:00]} 11. Re1 {[%clk 0:02:51]}  Rc8 {[%clk 0:02:59]} 12. b4 {[%clk 0:02:41]}  Ne4 {[%clk 0:02:52]} 13. Qb3 {[%clk 0:02:33]}  e6 {[%clk 0:02:44]} 14. Rac1 {[%clk 0:02:27]}  Qb6 {[%clk 0:02:37]} 15. b5 {[%clk 0:02:20]}  Na5 {[%clk 0:02:36]} 16. Qb4 {[%clk 0:02:16]}  Nc4 {[%clk 0:02:35]} 17. Nxe4 {[%clk 0:02:13]}  fxe4 {[%clk 0:02:34]} 18. Ng5 {[%clk 0:02:05]}  h6 {[%clk 0:02:29]} 19. Nh3 {[%clk 0:02:05]}  Rfd8 {[%clk 0:02:19]} 20. f3 {[%clk 0:02:02]}  f5 {[%clk 0:02:18]} 21. fxe4 {[%clk 0:01:57]}  fxe4 {[%clk 0:02:18]} 22. Kh1 {[%clk 0:01:56]}  Nd6 {[%clk 0:02:15]} 23. a4 {[%clk 0:01:52]}  Rc4 {[%clk 0:02:14]} 24. Qa3 {[%clk 0:01:48]}  Nf5 {[%clk 0:02:13]} 25. a5 {[%clk 0:01:39]}  Qxb5 {[%clk 0:02:11]} 26. Rb1 {[%clk 0:01:39]}  Qc6 {[%clk 0:02:10]} 27. Rb3 {[%clk 0:01:19]}  Rd7 {[%clk 0:02:06]} 28. Qb2 {[%clk 0:01:18]}  Ra4 {[%clk 0:01:32]} 29. Rb5 {[%clk 0:01:12]}  Bf8 {[%clk 0:01:29]} 30. Bb8 {[%clk 0:01:06]}  a6 {[%clk 0:01:29]} 31. Nf4 {[%clk 0:01:04]}  axb5 {[%clk 0:01:23]} 32. Qe2 {[%clk 0:00:53]}  Bd6 {[%clk 0:01:15]} 33. Qg4+ {[%clk 0:00:49]}  Rg7 {[%clk 0:01:15]} 34. Ng6 {[%clk 0:00:29]}  Bxb8 {[%clk 0:01:11]} 35. Rf1 {[%clk 0:00:27]}  Qe8 {[%clk 0:01:05]} 0-1


[Site "https://www.chess.com"]

[Event "Titled Tuesday Blitz April 26 Early 2022"]
[White "Chernomordik, Pavel"]
[Black "De Arruda, Leandro Formes"]
[WhiteFideId "2804530"]
[BlackFideId "22722009"]
[WhiteElo "2220"]
[BlackElo "1852"]
[Result "1-0"]
[Round "06"]
[TimeControl "180+1"]
[Date "2022.04.26"]
[WhiteClock "0:00:05"]
[BlackClock "0:00:01"]

1. e4 {[%clk 0:03:00]}  e6 {[%clk 0:02:58]} 2. Nc3 {[%clk 0:02:58]}  b6 {[%clk 0:02:57]} 3. d4 {[%clk 0:02:56]}  d5 {[%clk 0:02:56]} 4. exd5 {[%clk 0:02:53]}  exd5 {[%clk 0:02:55]} 5. Bf4 {[%clk 0:02:52]}  Ba6 {[%clk 0:02:49]} 6. Bxa6 {[%clk 0:02:50]}  Nxa6 {[%clk 0:02:50]} 7. Qe2+ {[%clk 0:02:50]}  Qe7 {[%clk 0:02:49]} 8. Nxd5 {[%clk 0:02:49]}  Qxe2+ {[%clk 0:02:43]} 9. Nxe2 {[%clk 0:02:49]}  O-O-O {[%clk 0:02:40]} 10. Ne3 {[%clk 0:02:45]}  Bd6 {[%clk 0:02:32]} 11. O-O-O {[%clk 0:02:41]}  Ne7 {[%clk 0:02:28]} 12. c3 {[%clk 0:02:37]}  Rhe8 {[%clk 0:02:22]} 13. Rhe1 {[%clk 0:02:34]}  Ng6 {[%clk 0:02:19]} 14. Bxd6 {[%clk 0:02:33]}  Rxd6 {[%clk 0:02:20]} 15. Nf5 {[%clk 0:02:15]}  Rf6 {[%clk 0:02:15]} 16. Neg3 {[%clk 0:02:07]}  Rd8 {[%clk 0:02:09]} 17. Re4 {[%clk 0:01:58]}  Nf8 {[%clk 0:02:01]} 18. f3 {[%clk 0:01:51]}  g6 {[%clk 0:01:42]} 19. Ne3 {[%clk 0:01:39]}  Ne6 {[%clk 0:01:35]} 20. Ng4 {[%clk 0:01:36]}  Rf4 {[%clk 0:01:35]} 21. Ne5 {[%clk 0:01:33]}  f5 {[%clk 0:01:14]} 22. Re2 {[%clk 0:01:26]}  Rh4 {[%clk 0:01:10]} 23. Nxg6 {[%clk 0:01:19]}  hxg6 {[%clk 0:01:00]} 24. Rxe6 {[%clk 0:01:18]}  Rxh2 {[%clk 0:01:00]} 25. Rd2 {[%clk 0:01:16]}  Rg8 {[%clk 0:00:52]} 26. Rde2 {[%clk 0:01:07]}  Kb7 {[%clk 0:00:40]} 27. Kc2 {[%clk 0:01:05]}  Nb8 {[%clk 0:00:39]} 28. d5 {[%clk 0:01:03]}  Nd7 {[%clk 0:00:25]} 29. b4 {[%clk 0:01:02]}  a5 {[%clk 0:00:22]} 30. Re7 {[%clk 0:00:53]}  Kc8 {[%clk 0:00:21]} 31. Nf1 {[%clk 0:00:45]}  Rh1 {[%clk 0:00:20]} 32. Ne3 {[%clk 0:00:39]}  axb4 {[%clk 0:00:18]} 33. cxb4 {[%clk 0:00:39]}  Kd8 {[%clk 0:00:14]} 34. Nc4 {[%clk 0:00:35]}  Nf6 {[%clk 0:00:11]} 35. R7e6 {[%clk 0:00:23]}  Nxd5 {[%clk 0:00:10]} 36. Rd2 {[%clk 0:00:20]}  Kd7 {[%clk 0:00:09]} 37. Re5 {[%clk 0:00:16]}  c6 {[%clk 0:00:09]} 38. Nxb6+ {[%clk 0:00:16]}  Kd6 {[%clk 0:00:10]} 39. Nc4+ {[%clk 0:00:15]}  Kc7 {[%clk 0:00:09]} 40. b5 {[%clk 0:00:15]}  Ra8 {[%clk 0:00:04]} 41. Kb2 {[%clk 0:00:14]}  Nb4 {[%clk 0:00:03]} 42. a3 {[%clk 0:00:11]}  Nd5 {[%clk 0:00:02]} 43. bxc6 {[%clk 0:00:10]}  Kxc6 {[%clk 0:00:03]} 44. Rexd5 {[%clk 0:00:09]}  Rb8+ {[%clk 0:00:03]} 45. Ka2 {[%clk 0:00:08]}  Rhb1 {[%clk 0:00:03]} 46. Ne5+ {[%clk 0:00:08]}  Kc7 {[%clk 0:00:03]} 47. Rc5+ {[%clk 0:00:07]}  Kb6 {[%clk 0:00:02]} 48. Nd7+ {[%clk 0:00:06]}  Ka7 {[%clk 0:00:01]} 49. Ra5+ {[%clk 0:00:05]} 1-0


[Site "https://www.chess.com"]

[Event "Titled Tuesday Blitz April 26 Early 2022"]
[White "Chuemsakul, Sarocha"]
[Black "Pires, Marcos Vinicius Torsani"]
[WhiteFideId "6203710"]
[BlackFideId "2118939"]
[WhiteElo "1703"]
[BlackElo "2273"]
[Result "1-0"]
[Round "06"]
[TimeControl "180+1"]
[Date "2022.04.26"]
[WhiteClock "0:00:06"]
[BlackClock "0:00:07"]

1. d4 {[%clk 0:03:00]}  d5 {[%clk 0:02:59]} 2. c4 {[%clk 0:03:00]}  e6 {[%clk 0:02:58]} 3. Nc3 {[%clk 0:02:59]}  Nf6 {[%clk 0:02:57]} 4. cxd5 {[%clk 0:02:59]}  exd5 {[%clk 0:02:57]} 5. Nf3 {[%clk 0:03:00]}  c6 {[%clk 0:02:57]} 6. Bf4 {[%clk 0:03:00]}  Bd6 {[%clk 0:02:56]} 7. Bxd6 {[%clk 0:02:59]}  Qxd6 {[%clk 0:02:57]} 8. e3 {[%clk 0:03:00]}  Bf5 {[%clk 0:02:57]} 9. Bd3 {[%clk 0:03:00]}  Bxd3 {[%clk 0:02:57]} 10. Qxd3 {[%clk 0:03:01]}  Nbd7 {[%clk 0:02:58]} 11. O-O {[%clk 0:03:02]}  O-O {[%clk 0:02:58]} 12. a3 {[%clk 0:03:02]}  Rfe8 {[%clk 0:02:58]} 13. b4 {[%clk 0:02:59]}  a6 {[%clk 0:02:59]} 14. Na4 {[%clk 0:02:59]}  b5 {[%clk 0:02:46]} 15. Nc5 {[%clk 0:02:59]}  Nb6 {[%clk 0:02:46]} 16. a4 {[%clk 0:02:59]}  Nc4 {[%clk 0:02:45]} 17. Ra2 {[%clk 0:02:52]}  Ne4 {[%clk 0:02:40]} 18. Rfa1 {[%clk 0:02:49]}  Nxc5 {[%clk 0:02:29]} 19. dxc5 {[%clk 0:02:43]}  Qb8 {[%clk 0:02:20]} 20. axb5 {[%clk 0:02:39]}  Qxb5 {[%clk 0:02:21]} 21. Qc3 {[%clk 0:02:24]}  a5 {[%clk 0:02:07]} 22. Nd4 {[%clk 0:02:20]}  Qb7 {[%clk 0:01:57]} 23. bxa5 {[%clk 0:01:55]}  Reb8 {[%clk 0:01:47]} 24. h4 {[%clk 0:01:45]}  f6 {[%clk 0:01:26]} 25. a6 {[%clk 0:01:38]}  Qd7 {[%clk 0:01:23]} 26. Qc2 {[%clk 0:00:46]}  Ra7 {[%clk 0:01:15]} 27. Qf5 {[%clk 0:00:43]}  Qxf5 {[%clk 0:00:56]} 28. Nxf5 {[%clk 0:00:44]}  Rb5 {[%clk 0:00:37]} 29. Ne7+ {[%clk 0:00:37]}  Rxe7 {[%clk 0:00:31]} 30. a7 {[%clk 0:00:37]}  Rxa7 {[%clk 0:00:31]} 31. Rxa7 {[%clk 0:00:38]}  Rxc5 {[%clk 0:00:32]} 32. Rb1 {[%clk 0:00:36]}  Rb5 {[%clk 0:00:23]} 33. Rxb5 {[%clk 0:00:36]}  cxb5 {[%clk 0:00:23]} 34. Rb7 {[%clk 0:00:37]}  Nd6 {[%clk 0:00:15]} 35. Rb6 {[%clk 0:00:36]}  Nf5 {[%clk 0:00:15]} 36. g3 {[%clk 0:00:35]}  Kf7 {[%clk 0:00:14]} 37. Rxb5 {[%clk 0:00:36]}  Ke6 {[%clk 0:00:14]} 38. Kg2 {[%clk 0:00:36]}  d4 {[%clk 0:00:12]} 39. exd4 {[%clk 0:00:32]}  Nxd4 {[%clk 0:00:13]} 40. Rb7 {[%clk 0:00:32]}  Nf5 {[%clk 0:00:12]} 41. Kh3 {[%clk 0:00:32]}  h5 {[%clk 0:00:12]} 42. f3 {[%clk 0:00:27]}  g6 {[%clk 0:00:12]} 43. g4 {[%clk 0:00:24]}  hxg4+ {[%clk 0:00:13]} 44. fxg4 {[%clk 0:00:24]}  Nd6 {[%clk 0:00:13]} 45. Rb6 {[%clk 0:00:23]}  Ke5 {[%clk 0:00:11]} 46. Ra6 {[%clk 0:00:20]}  f5 {[%clk 0:00:10]} 47. g5 {[%clk 0:00:18]}  f4 {[%clk 0:00:09]} 48. Kg4 {[%clk 0:00:18]}  f3 {[%clk 0:00:07]} 49. Kxf3 {[%clk 0:00:16]}  Nf5 {[%clk 0:00:08]} 50. Ra5+ {[%clk 0:00:15]}  Ke6 {[%clk 0:00:07]} 51. Kg4 {[%clk 0:00:14]}  Ne3+ {[%clk 0:00:07]} 52. Kh3 {[%clk 0:00:13]}  Nf5 {[%clk 0:00:07]} 53. Ra6+ {[%clk 0:00:13]}  Kf7 {[%clk 0:00:07]} 54. Rf6+ {[%clk 0:00:14]}  Kg7 {[%clk 0:00:08]} 55. Re6 {[%clk 0:00:13]}  Nd4 {[%clk 0:00:07]} 56. Re4 {[%clk 0:00:13]}  Nf5 {[%clk 0:00:08]} 57. Kg4 {[%clk 0:00:13]}  Nd6 {[%clk 0:00:08]} 58. Re7+ {[%clk 0:00:13]}  Kg8 {[%clk 0:00:07]} 59. Rd7 {[%clk 0:00:12]}  Nf5 {[%clk 0:00:07]} 60. h5 {[%clk 0:00:12]}  Ng7 {[%clk 0:00:06]} 61. hxg6 {[%clk 0:00:11]}  Ne6 {[%clk 0:00:07]} 62. Re7 {[%clk 0:00:09]}  Ng7 {[%clk 0:00:07]} 63. Ra7 {[%clk 0:00:09]}  Ne6 {[%clk 0:00:07]} 64. Kf5 {[%clk 0:00:09]}  Ng7+ {[%clk 0:00:07]} 65. Ke5 {[%clk 0:00:09]}  Ne8 {[%clk 0:00:07]} 66. Rb7 {[%clk 0:00:05]}  Ng7 {[%clk 0:00:06]} 67. Rb8+ {[%clk 0:00:05]}  Ne8 {[%clk 0:00:07]} 68. Rxe8+ {[%clk 0:00:05]}  Kg7 {[%clk 0:00:08]} 69. Re6 {[%clk 0:00:06]}  Kg8 {[%clk 0:00:08]} 70. Kf6 {[%clk 0:00:06]}  Kf8 {[%clk 0:00:07]} 71. Re5 {[%clk 0:00:05]}  Kg8 {[%clk 0:00:07]} 72. Re8# {[%clk 0:00:06]} 1-0


[Site "https://www.chess.com"]